fUST/lending_fUST_20240117
["ID","MTS","AMOUNT","RATE_DAILY","PERIOD"]
[311927877,1705504246676,-500.0,0.00022465,2]
[311927879,1705504246687,-500.0,0.00022465,2]
[311927881,1705504246696,-500.0,0.00022465,2]
[311927883,1705504246707,-925.73,0.00022465,2]
[311927885,1705504246716,-511.13734653,0.00022465,2]
[311927887,1705504246725,-500.0,0.00022465,2]
[311927889,1705504246734,-1922.32,0.00022465,2]
[311927891,1705504246743,-500.0,0.00022465,2]
[311927893,1705504246753,-2772.8,0.00022465,2]
[311927895,1705504246762,-500.0,0.00022465,2]
[311927897,1705504246772,-500.0,0.00022465,2]
[311927899,1705504246782,-500.0,0.00022465,2]
[311927901,1705504246792,-500.0,0.00022465,2]
[311927903,1705504246800,-500.0,0.00022465,2]
[311927905,1705504246810,-500.0,0.00022465,2]
[311927907,1705504246819,-720.39,0.00022465,2]
[311927908,1705504246828,-500.0,0.00022465,2]
[311927911,1705504246837,-597.39,0.00022465,2]
[311927912,1705504246846,-1006.04,0.00022465,2]
[311927915,1705504246857,-500.0,0.00022465,2]
[311927917,1705504246867,-767.89,0.00022465,2]
[311927918,1705504246876,-1140.46,0.00022465,2]
[311927920,1705504246886,-500.0,0.00022465,2]
[311927923,1705504246895,-2148.0,0.00022465,2]
[311927924,1705504246904,-500.0,0.00022465,2]
[311927927,1705504246914,-6084.07,0.00022465,2]
[311927928,1705504246924,-6934.8,0.00022465,2]
[311927930,1705504246934,-500.0,0.00022465,2]
[311927933,1705504246943,-500.0,0.00022465,2]
[311927934,1705504246953,-658.6,0.00022465,2]
[311927936,1705504246963,-500.0,0.00022465,2]
[311927939,1705504246972,-2351.28,0.00022465,2]
[311927940,1705504246982,-500.0,0.00022465,2]
[311927942,1705504246991,-652.19,0.00022465,2]
[311927944,1705504247000,-405.32457491,0.00022465,2]
[311927946,1705504247009,-500.0,0.00022465,2]
[311927948,1705504247018,-656.33,0.00022465,2]
[311927950,1705504247028,-5715.73,0.00022465,2]
[311927952,1705504247037,-500.0,0.00022465,2]
[311927954,1705504247046,-1194.57,0.00022465,2]
[311927956,1705504247055,-717.95,0.00022465,2]
[311927958,1705504247065,-500.0,0.00022465,2]
[311927960,1705504247075,-722.74,0.00022465,2]
[311927962,1705504247084,-1505.14,0.00022465,2]
[311927964,1705504247094,-592.28485347,0.00022465,2]
[311927966,1705504247106,-500.0,0.00022465,2]
[311927968,1705504247122,-12823.16,0.00022465,2]
[311927970,1705504247137,-1887.62,0.00022465,2]
[311927972,1705504247146,-500.0,0.00022465,2]
[311927974,1705504247155,-1130.85,0.00022465,2]
[311927976,1705504247165,-500.0,0.00022465,2]
[311927978,1705504247174,-1482.98,0.00022465,2]
[311927980,1705504247183,-606.13,0.00022465,2]
[311927982,1705504247193,-1589.01,0.00022465,2]
[311927984,1705504247202,-2415.92,0.00022465,2]
[311927986,1705504247212,-13372.02,0.00022465,2]
[311927988,1705504247221,-500.0,0.00022465,2]
[311927990,1705504247230,-500.0,0.00022465,2]
[311927992,1705504247239,-500.0,0.00022465,2]
[311927994,1705504247249,-501.23,0.00022465,2]
[311927996,1705504247258,-500.0,0.00022465,2]
[311927998,1705504247267,-500.0,0.00022465,2]
[311928000,1705504247280,-2109.97,0.00022465,2]
[311928002,1705504247289,-500.0,0.00022465,2]
[311928004,1705504247298,-573.28,0.00022465,2]
[311928006,1705504247308,-500.0,0.00022465,2]
[311928008,1705504247317,-4932.27,0.00022465,2]
[311928010,1705504247327,-500.0,0.00022465,2]
[311928012,1705504247336,-23081.27,0.00022465,2]
[311928014,1705504247346,-500.0,0.00022465,2]
[311928016,1705504247356,-500.0,0.00022465,2]
[311928018,1705504247365,-500.0,0.00022465,2]
[311928020,1705504247374,-500.0,0.00022601,2]
[311928022,1705504247383,-500.0,0.00022601,2]
[311928025,1705504247393,-500.0,0.00022601,2]
[311928027,1705504247402,-500.0,0.00022601,2]
[311928029,1705504247412,-500.0,0.00022601,2]
[311928031,1705504247421,-412.12198326,0.00022601,2]
[311928033,1705504247431,-500.0,0.00022602,2]
[311928035,1705504247440,-1231.63,0.00022602,2]
[311928037,1705504247449,-606.76,0.00022602,2]
[311928039,1705504247460,-596.37,0.00022602,2]
[311928041,1705504247469,-510.71,0.00022602,2]
[311928043,1705504247478,-626.7,0.00022602,2]
[311928045,1705504247487,-502.1292157,0.00022602,2]
[311928046,1705504247496,-500.0,0.00022602,2]
[311928048,1705504247505,-500.0,0.00022602,2]
[311928050,1705504247514,-500.0,0.00022602,2]
[311928052,1705504247523,-925.73,0.00022602,2]
[311928054,1705504247532,-1922.32,0.00022602,2]
[311928056,1705504247541,-500.0,0.00022602,2]
[311928058,1705504247550,-2772.8,0.00022602,2]
[311928060,1705504247560,-500.0,0.00022602,2]
[311928062,1705504247569,-500.0,0.00022602,2]
[311928064,1705504247578,-500.0,0.00022602,2]
[311928066,1705504247587,-500.0,0.00022602,2]
[311928068,1705504247596,-500.0,0.00022602,2]
[311928070,1705504247605,-720.39,0.00022602,2]
[311928072,1705504247614,-500.0,0.00022602,2]
[311928074,1705504247624,-597.39,0.00022602,2]
[311928076,1705504247633,-1006.04,0.00022602,2]
[311928078,1705504247642,-500.0,0.00022602,2]
[311928080,1705504247651,-767.89,0.00022602,2]
[311928082,1705504247660,-1140.46,0.00022602,2]
[311928084,1705504247669,-500.0,0.00022602,2]
[311928086,1705504247678,-2148.0,0.00022602,2]
[311928088,1705504247691,-500.0,0.00022602,2]
[311928090,1705504247701,-6084.07,0.00022602,2]
[311928092,1705504247711,-6934.8,0.00022602,2]
[311928094,1705504247720,-500.0,0.00022602,2]
[311928096,1705504247729,-500.0,0.00022602,2]
[311928098,1705504247738,-658.6,0.00022602,2]
[311928100,1705504247748,-500.0,0.00022602,2]
[311928102,1705504247757,-2351.28,0.00022602,2]
[311928104,1705504247767,-500.0,0.00022602,2]
[311928112,1705504247840,-652.19,0.00022602,2]
[311928114,1705504247850,-500.0,0.00022602,2]
[311928115,1705504247858,-656.33,0.00022602,2]
[311928116,1705504247867,-5715.73,0.00022602,2]
[311928117,1705504247875,-500.0,0.00022602,2]
[311928118,1705504247884,-1194.57,0.00022602,2]
[311928119,1705504247893,-717.95,0.00022602,2]
[311928120,1705504247902,-500.0,0.00022602,2]
[311928121,1705504247910,-722.74,0.00022602,2]
[311928122,1705504247919,-1505.14,0.00022602,2]
[311928123,1705504247928,-500.0,0.00022602,2]
[311928124,1705504247937,-12823.16,0.00022602,2]
[311928125,1705504247946,-1887.62,0.00022602,2]
[311928126,1705504247955,-1130.85,0.00022602,2]
[311928127,1705504247964,-500.0,0.00022602,2]
[311928128,1705504247973,-1482.98,0.00022602,2]
[311928129,1705504247982,-606.13,0.00022602,2]
[311928130,1705504247991,-1589.01,0.00022602,2]
[311928131,1705504248000,-2415.92,0.00022602,2]
[311928132,1705504248008,-13372.02,0.00022602,2]
[311928133,1705504248017,-500.0,0.00022602,2]
[311928134,1705504248026,-500.0,0.00022602,2]
[311928135,1705504248035,-501.23,0.00022602,2]
[311928136,1705504248045,-500.0,0.00022602,2]
[311928137,1705504248054,-500.0,0.00022602,2]
[311928138,1705504248062,-2109.97,0.00022602,2]
[311928139,1705504248071,-500.0,0.00022602,2]
[311928140,1705504248080,-573.28,0.00022602,2]
[311928141,1705504248089,-500.0,0.00022602,2]
[311928142,1705504248099,-4932.27,0.00022602,2]
[311928144,1705504248110,-500.0,0.00022602,2]
[311928146,1705504248120,-23081.27,0.00022602,2]
[311928147,1705504248130,-500.0,0.00022602,2]
[311928149,1705504248139,-500.0,0.00022602,2]
[311928151,1705504248149,-155.42680592,0.00022737,2]
[311928154,1705504248160,-156.70193537,0.00022737,2]
[311928156,1705504248169,-155.57618155,0.00022737,2]
[311928158,1705504248179,-858.53563101,0.00022738,2]
[311928160,1705504248189,-500.0,0.00022739,2]
[311928162,1705504248199,-1231.63,0.00022739,2]
[311928164,1705504248212,-606.76,0.00022739,2]
[311928166,1705504248221,-596.37,0.00022739,2]
[311928168,1705504248230,-510.71,0.00022739,2]
[311928169,1705504248239,-626.7,0.00022739,2]
[311928171,1705504248249,-514.14647517,0.00022739,2]
[311928173,1705504248258,-500.0,0.00022739,2]
[311928175,1705504248267,-500.0,0.00022739,2]
[311928178,1705504248278,-925.73,0.00022739,2]
[311928179,1705504248288,-1922.32,0.00022739,2]
[311928181,1705504248298,-597.57644072,0.00022739,2]
[311928184,1705504248309,-2772.8,0.00022739,2]
[311928185,1705504248319,-500.0,0.00022739,2]
[311928187,1705504248328,-417.16811537,0.00022739,2]
[311928189,1705504248338,-500.0,0.00022739,2]
[311928191,1705504248349,-500.0,0.00022739,2]
[311928193,1705504248358,-500.0,0.00022739,2]
[311928195,1705504248368,-720.39,0.00022739,2]
[311928197,1705504248377,-500.0,0.00022739,2]
[311928199,1705504248388,-597.39,0.00022739,2]
[311928201,1705504248397,-1006.04,0.00022739,2]
[311928203,1705504248407,-546.15047069,0.00022739,2]
[311928205,1705504248417,-767.89,0.00022739,2]
[311928207,1705504248426,-1140.46,0.00022739,2]
[311928209,1705504248435,-500.0,0.00022739,2]
[311928211,1705504248445,-2148.0,0.00022739,2]
[311928213,1705504248454,-500.0,0.00022739,2]
[311928215,1705504248470,-6084.07,0.00022739,2]
[311928217,1705504248480,-6934.8,0.00022739,2]
[311928219,1705504248489,-387.9049843,0.00022739,2]
[311928221,1705504248499,-500.0,0.00022739,2]
[311928223,1705504248508,-658.6,0.00022739,2]
[311928225,1705504248518,-500.0,0.00022739,2]
[311928227,1705504248528,-2351.28,0.00022739,2]
[311928229,1705504248537,-500.0,0.00022739,2]
[311928231,1705504248547,-652.19,0.00022739,2]
[311928233,1705504248557,-500.0,0.00022739,2]
[311928235,1705504248566,-656.33,0.00022739,2]
[311928237,1705504248575,-5715.73,0.00022739,2]
[311928239,1705504248584,-500.0,0.00022739,2]
[311928241,1705504248593,-1194.57,0.00022739,2]
[311928243,1705504248602,-717.95,0.00022739,2]
[311928245,1705504248612,-500.0,0.00022739,2]
[311928247,1705504248621,-722.74,0.00022739,2]
[311928249,1705504248630,-1505.14,0.00022739,2]
[311928251,1705504248640,-500.0,0.00022739,2]
[311928253,1705504248649,-12823.16,0.00022739,2]
[311928255,1705504248658,-1887.62,0.00022739,2]
[311928257,1705504248667,-1130.85,0.00022739,2]
[311928259,1705504248678,-500.0,0.00022739,2]
[311928260,1705504248687,-1482.98,0.00022739,2]
[311928262,1705504248697,-606.13,0.00022739,2]
[311928264,1705504248709,-1589.01,0.00022739,2]
[311928266,1705504248721,-2415.92,0.00022739,2]
[311928268,1705504248731,-13372.02,0.00022739,2]
[311928270,1705504248740,-500.0,0.00022739,2]
[311928272,1705504248750,-500.0,0.00022739,2]
[311928274,1705504248761,-501.23,0.00022739,2]
[311928276,1705504248773,-500.0,0.00022739,2]
[311928278,1705504248782,-552.44366241,0.00022739,2]
[311928280,1705504248792,-2109.97,0.00022739,2]
[311928283,1705504248804,-477.01994984,0.00022739,2]
[311928285,1705504248813,-573.28,0.00022739,2]
[311928287,1705504248822,-500.0,0.00022739,2]
[311928289,1705504248832,-4932.27,0.00022739,2]
[311928290,1705504248842,-297.85787944,0.00022739,2]
[311928293,1705504248851,-23081.27,0.00022739,2]
[311928294,1705504248861,-500.0,0.00022739,2]
[311928296,1705504248870,-500.0,0.00022739,2]
[311928298,1705504248879,-500.0,0.00022876,2]
[311928300,1705504248888,-1231.63,0.00022876,2]
[311928302,1705504248898,-606.76,0.00022876,2]
[311928304,1705504248907,-596.37,0.00022876,2]
[311928306,1705504248915,-510.71,0.00022876,2]
[311928308,1705504248924,-626.7,0.00022876,2]
[311928310,1705504248934,-500.0,0.00022876,2]
[311928312,1705504248944,-500.0,0.00022876,2]
[311928314,1705504248952,-925.73,0.00022876,2]
[311928316,1705504248966,-1922.32,0.00022876,2]
[311928318,1705504248975,-2772.8,0.00022876,2]
[311928320,1705504248984,-500.0,0.00022876,2]
[311928322,1705504248994,-500.0,0.00022876,2]
[311928324,1705504249004,-500.0,0.00022876,2]
[311928326,1705504249016,-500.0,0.00022876,2]
[311928328,1705504249024,-720.39,0.00022876,2]
[311928330,1705504249033,-597.39,0.00022876,2]
[311928332,1705504249043,-1006.04,0.00022876,2]
[311928334,1705504249052,-767.89,0.00022876,2]
[311928336,1705504249061,-1140.46,0.00022876,2]
[311928338,1705504249070,-2148.0,0.00022876,2]
[311928340,1705504249079,-500.0,0.00022876,2]
[311928342,1705504249089,-500.0,0.00022876,2]
[311928344,1705504249099,-6084.07,0.00022876,2]
[311928346,1705504249109,-6934.8,0.00022876,2]
[311928348,1705504249118,-500.0,0.00022876,2]
[311928350,1705504249127,-658.6,0.00022876,2]
[311928352,1705504249137,-500.0,0.00022876,2]
[311928354,1705504249146,-2351.28,0.00022876,2]
[311928356,1705504249155,-500.0,0.00022876,2]
[311928358,1705504249164,-652.19,0.00022876,2]
[311928360,1705504249174,-656.33,0.00022876,2]
[311928362,1705504249183,-5715.73,0.00022876,2]
[311928370,1705504249247,-500.0,0.00022876,2]
[311928372,1705504249263,-1194.57,0.00022876,2]
[311928374,1705504249271,-717.95,0.00022876,2]
[311928376,1705504249280,-500.0,0.00022876,2]
[311928378,1705504249291,-722.74,0.00022876,2]
[311928380,1705504249301,-1505.14,0.00022876,2]
[311928383,1705504249310,-500.0,0.00022876,2]
[311928386,1705504249318,-12823.16,0.00022876,2]
[311928388,1705504249327,-1887.62,0.00022876,2]
[311928391,1705504249337,-1130.85,0.00022876,2]
[311928393,1705504249346,-500.0,0.00022876,2]
[311928395,1705504249355,-1482.98,0.00022876,2]
[311928397,1705504249364,-606.13,0.00022876,2]
[311928399,1705504249373,-1589.01,0.00022876,2]
[311928401,1705504249382,-2415.92,0.00022876,2]
[311928403,1705504249390,-13372.02,0.00022876,2]
[311928405,1705504249399,-500.0,0.00022876,2]
[311928407,1705504249409,-500.0,0.00022876,2]
[311928409,1705504249419,-501.23,0.00022876,2]
[311928411,1705504249427,-500.0,0.00022876,2]
[311928413,1705504249436,-2109.97,0.00022876,2]
[311928415,1705504249445,-573.28,0.00022876,2]
[311928417,1705504249454,-500.0,0.00022876,2]
[311928419,1705504249466,-4932.27,0.00022876,2]
[311928421,1705504249475,-23081.27,0.00022876,2]
[311928423,1705504249483,-500.0,0.00022876,2]
[311928425,1705504249492,-500.0,0.00022876,2]
[311928427,1705504249501,-166.666666,0.00022944,2]
[311928429,1705504249510,-251.0,0.00023,2]
[311928431,1705504249519,-1500.0,0.00023,2]
[311928433,1705504249527,-1500.0,0.00023,2]
[311928435,1705504249536,-1500.0,0.00023,2]
[311928437,1705504249545,-1500.0,0.00023,2]
[311928439,1705504249554,-1500.0,0.00023,2]
[311928441,1705504249563,-1598.18,0.00023,2]
[311928443,1705504249572,-37302.0,0.00023,2]
[311928445,1705504249581,-1094.491568,0.00023,2]
[311928447,1705504249590,-1094.491568,0.00023,2]
[311928449,1705504249599,-151.0,0.00023013,2]
[311928451,1705504249608,-312.086078,0.00023013,2]
[311928453,1705504249617,-312.086078,0.00023013,2]
[311928455,1705504249626,-500.0,0.00023013,2]
[311928457,1705504249634,-1231.63,0.00023013,2]
[311928458,1705504249643,-606.76,0.00023013,2]
[311928460,1705504249653,-596.37,0.00023013,2]
[311928462,1705504249662,-510.71,0.00023013,2]
[311928464,1705504249671,-626.7,0.00023013,2]
[311928466,1705504249680,-500.0,0.00023013,2]
[311928469,1705504249691,-500.0,0.00023013,2]
[311928470,1705504249700,-925.73,0.00023013,2]
[311928472,1705504249710,-1922.32,0.00023013,2]
[311928474,1705504249721,-2772.8,0.00023013,2]
[311928476,1705504249730,-500.0,0.00023013,2]
[311928478,1705504249738,-500.0,0.00023013,2]
[311928480,1705504249748,-500.0,0.00023013,2]
[311928482,1705504249758,-500.0,0.00023013,2]
[311928484,1705504249767,-720.39,0.00023013,2]
[311928486,1705504249777,-597.39,0.00023013,2]
[311928488,1705504249786,-1006.04,0.00023013,2]
[311928490,1705504249796,-767.89,0.00023013,2]
[311928492,1705504249805,-1140.46,0.00023013,2]
[311928494,1705504249815,-500.0,0.00023013,2]
[311928496,1705504249824,-500.0,0.00023013,2]
[311928498,1705504249834,-2148.0,0.00023013,2]
[311928500,1705504249843,-6084.07,0.00023013,2]
[311928502,1705504249852,-6934.8,0.00023013,2]
[311928504,1705504249862,-500.0,0.00023013,2]
[311928506,1705504249870,-658.6,0.00023013,2]
[311928508,1705504249879,-500.0,0.00023013,2]
[311928510,1705504249888,-2351.28,0.00023013,2]
[311928512,1705504249898,-500.0,0.00023013,2]
[311928514,1705504249907,-652.19,0.00023013,2]
[311928516,1705504249917,-656.33,0.00023013,2]
[311928518,1705504249926,-5715.73,0.00023013,2]
[311928520,1705504249936,-500.0,0.00023013,2]
[311928522,1705504249946,-1194.57,0.00023013,2]
[311928524,1705504249955,-717.95,0.00023013,2]
[311928526,1705504249967,-500.0,0.00023013,2]
[311928528,1705504249977,-722.74,0.00023013,2]
[311928530,1705504249986,-1505.14,0.00023013,2]
[311928532,1705504249996,-500.0,0.00023013,2]
[311928534,1705504250005,-12823.16,0.00023013,2]
[311928536,1705504250015,-1887.62,0.00023013,2]
[311928538,1705504250024,-1130.85,0.00023013,2]
[311928540,1705504250033,-562.42328783,0.00023013,2]
[311928542,1705504250043,-1482.98,0.00023013,2]
[311928544,1705504250052,-606.13,0.00023013,2]
[311928546,1705504250062,-1589.01,0.00023013,2]
[311928548,1705504250071,-2415.92,0.00023013,2]
[311928550,1705504250080,-13372.02,0.00023013,2]
[311928552,1705504250090,-500.0,0.00023013,2]
[311928554,1705504250100,-500.0,0.00023013,2]
[311928556,1705504250109,-501.23,0.00023013,2]
[311928558,1705504250120,-500.0,0.00023013,2]
[311928560,1705504250129,-2109.97,0.00023013,2]
[311928562,1705504250139,-573.28,0.00023013,2]
[311928564,1705504250149,-500.0,0.00023013,2]
[311928566,1705504250159,-4932.27,0.00023013,2]
[311928568,1705504250168,-23081.27,0.00023013,2]
[311928570,1705504250177,-500.0,0.00023013,2]
[311928572,1705504250187,-365.18301625,0.00023013,2]
[311928573,1705504250196,-151.0,0.0002305,2]
[311928575,1705504250205,-500.0,0.0002315,2]
[311928577,1705504250222,-1231.63,0.0002315,2]
[311928579,1705504250232,-606.76,0.0002315,2]
[311928581,1705504250242,-596.37,0.0002315,2]
[311928584,1705504250252,-510.71,0.0002315,2]
[311928585,1705504250262,-626.7,0.0002315,2]
[311928588,1705504250274,-500.0,0.0002315,2]
[311928589,1705504250283,-500.0,0.0002315,2]
[311928591,1705504250293,-925.73,0.0002315,2]
[311928593,1705504250303,-1922.32,0.0002315,2]
[311928596,1705504250312,-2772.8,0.0002315,2]
[311928598,1705504250322,-500.0,0.0002315,2]
[311928599,1705504250331,-500.0,0.0002315,2]
[311928601,1705504250340,-500.0,0.0002315,2]
[311928603,1705504250350,-500.0,0.0002315,2]
[311928605,1705504250359,-720.39,0.0002315,2]
[311928607,1705504250368,-597.39,0.0002315,2]
[311928609,1705504250377,-1006.04,0.0002315,2]
[311928611,1705504250386,-767.89,0.0002315,2]
[311928613,1705504250395,-1140.46,0.0002315,2]
[311928616,1705504250405,-500.0,0.0002315,2]
[311928617,1705504250414,-2148.0,0.0002315,2]
[311928620,1705504250425,-500.0,0.0002315,2]
[311928621,1705504250434,-6084.07,0.0002315,2]
[311928623,1705504250444,-6934.8,0.0002315,2]
[311928625,1705504250453,-500.0,0.0002315,2]
[311928626,1705504250467,-658.6,0.0002315,2]
[311928627,1705504250477,-500.0,0.0002315,2]
[311928628,1705504250487,-2351.28,0.0002315,2]
[311928634,1705504250558,-261.30404431,0.0002315,2]
[311928637,1705504250569,-652.19,0.0002315,2]
[311928638,1705504250578,-656.33,0.0002315,2]
[311928641,1705504250588,-5715.73,0.0002315,2]
[311928643,1705504250597,-500.0,0.0002315,2]
[311928645,1705504250606,-1194.57,0.0002315,2]
[311928647,1705504250616,-717.95,0.0002315,2]
[311928649,1705504250625,-500.0,0.0002315,2]
[311928650,1705504250634,-722.74,0.0002315,2]
[311928653,1705504250643,-1505.14,0.0002315,2]
[311928654,1705504250653,-12823.16,0.0002315,2]
[311928656,1705504250663,-1887.62,0.0002315,2]
[311928659,1705504250673,-1130.85,0.0002315,2]
[311928660,1705504250683,-1482.98,0.0002315,2]
[311928663,1705504250693,-606.13,0.0002315,2]
[311928665,1705504250703,-1589.01,0.0002315,2]
[311928667,1705504250715,-291.53593609,0.0002315,2]
[311928669,1705504250733,-2124.38406391,0.0002315,2]
[311928671,1705504250743,-11596.12299249,0.0002315,2]
[311928674,1705504250758,-1008.81129158,0.0002315,2]
[311928682,1705504250821,-1465.33004593,0.00021906,2]
[311929502,1705504583438,150.0,0.00029,30]
[311929505,1705505077114,-263.2863002,0.00018995,2]
[311929506,1705505077322,-5.3731898,0.00018995,2]
[311929507,1705505103047,-12000.0,0.00019033,2]
[311929508,1705505103183,-12000.0,0.00019033,2]
[311929509,1705505103282,-900.0,0.00019033,2]
[311929511,1705505136185,-483.79110504,0.00018972,2]
[311929512,1705505136300,-9.87328786,0.00018972,2]
[311929513,1705505147238,-10086.41585538,0.00019033,2]
[311929514,1705505147332,-205.84522154,0.00019033,2]
[311929515,1705505161268,-3935.90042184,0.00019033,2]
[311929516,1705505161432,-80.3244984,0.00019033,2]
[311929517,1705505231202,-2000.88810436,0.00019177,2]
[311929518,1705505231234,-158.93207417,0.00019178,2]
[311929519,1705505231364,-44.07796283,0.00019178,2]
[311929520,1705505233365,2000.88810436,0.00019177,2]
[311929521,1705505240735,-1177.79634052,0.00019033,2]
[311929522,1705505240840,-24.03666001,0.00019033,2]
[311929543,1705505432088,-154.95351395,0.00019801,2]
[311929544,1705505432098,-2812.5349439,0.00019804,2]
[311929545,1705505432108,-36931.7299546,0.00019805,2]
[311929546,1705505432118,-334.82848718,0.00019805,2]
[311929547,1705505432130,-334.82848718,0.00019805,2]
[311929549,1705505432139,-334.82848718,0.00019805,2]
[311929551,1705505432149,-9276.15523392,0.00019806,2]
[311929555,1705505434697,-776.52322053,0.00019033,2]
[311929556,1705505434894,-15.84741266,0.00019033,2]
[311929586,1705505438293,-154.95351395,0.000198,3]
[311929588,1705505438303,-6624.43631507,0.00019806,2]
[311929590,1705505438313,-2032.6864534,0.00019806,2]
[311929593,1705505438323,-2457.21720074,0.00019808,2]
[311929594,1705505438332,-154.98916192,0.00019812,2]
[311929596,1705505438341,-322.56037203,0.00019812,2]
[311929599,1705505438351,-155.95974943,0.00019812,2]
[311929600,1705505438361,-3833.39,0.00019822,3]
[311929602,1705505438371,-687.36165811,0.00019824,2]
[311929604,1705505438380,-3742.63964853,0.00019831,2]
[311929607,1705505438390,-3481.1678536,0.00019832,2]
[311929608,1705505438399,-187.05075209,0.0002,2]
[311929610,1705505438409,-2995.12470388,0.0002,2]
[311929612,1705505438419,-1196.71363385,0.0002,2]
[311929615,1705505438428,-677.90931289,0.0002,2]
[311929617,1705505438438,-849.41831623,0.0002,2]
[311929619,1705505438447,-18103.77337491,0.00020033,2]
[311929621,1705505438457,-7303.45,0.00020227,3]
[311929622,1705505438466,-1250.98913617,0.00020235,2]
[311929624,1705505438476,-3126.02728391,0.00020236,2]
[311929626,1705505438485,-207.77198332,0.00020236,2]
[311929628,1705505438496,-643.52434414,0.00020237,2]
[311929630,1705505438506,-1991.06584155,0.00020237,2]
[311929632,1705505438517,-10515.69454875,0.00020237,2]
[311929634,1705505438528,-1576.73391587,0.00020237,2]
[311929636,1705505438538,-861.45126448,0.00020237,2]
[311929638,1705505438548,-261.99076107,0.00020237,2]
[311929640,1705505438558,-470.04658801,0.00020237,2]
[311929642,1705505438569,-162.90595907,0.00020238,2]
[311929644,1705505438579,-242.79443155,0.00020238,2]
[311929646,1705505438590,-253.76844676,0.00020238,2]
[311929648,1705505438599,-526.06302176,0.00020238,2]
[311929650,1705505438609,-1738.64209079,0.00020238,2]
[311929652,1705505438618,-1580.16851554,0.00020238,2]
[311929654,1705505438628,-50000.0,0.00020722,2]
[311929656,1705505438638,-2342.0581358,0.00020913,2]
[311929658,1705505438647,-327.18048,0.00021,2]
[311929660,1705505438657,-1815.68321298,0.00021,2]
[311929662,1705505438668,-200.0,0.00021788,7]
[311929664,1705505438677,-220.41694556,0.00021906,2]
[311929666,1705505438686,-1023.11601732,0.00021906,2]
[311929668,1705505438696,-155.05269684,0.00021915,2]
[311929670,1705505438705,-1288.9766709,0.00021915,2]
[311929672,1705505438714,-7993.35951483,0.00021915,2]
[311929674,1705505438724,-500.0,0.00021917,2]
[311929676,1705505438734,-330.6015298,0.00021917,2]
[311929677,1705505438743,-638.48739459,0.00021917,2]
[311929678,1705505438753,-500.0,0.00021917,2]
[311929679,1705505438767,-500.0,0.00021917,2]
[311929680,1705505438776,-500.0,0.00021917,2]
[311929681,1705505438786,-500.0,0.00021917,2]
[311929682,1705505438795,-500.0,0.00021917,2]
[311929683,1705505438804,-500.0,0.00021917,2]
[311929684,1705505438813,-500.0,0.00021917,2]
[311929685,1705505438823,-500.0,0.00021917,2]
[311929686,1705505438833,-508.74722001,0.00021917,2]
[311929687,1705505438842,-224.20797195,0.00021917,2]
[311929688,1705505438852,-500.0,0.00021917,2]
[311929689,1705505438861,-500.0,0.00021917,2]
[311929690,1705505438871,-500.0,0.00021917,2]
[311929691,1705505438881,-500.0,0.00021917,2]
[311929692,1705505438890,-500.0,0.00021917,2]
[311929693,1705505438900,-500.0,0.00021917,2]
[311929694,1705505438909,-500.0,0.00021917,2]
[311929695,1705505438919,-500.0,0.00021917,2]